bitfinex-derivatives/quotes_BTCF0:USTF0_20250402
["timestamp","ask_amount","ask_price","bid_price","bid_amount"]
[1743592293382,0.00060001,84946.0,84945.0,0.10883154]
[1743592293680,0.00060001,84946.0,84945.0,0.09386638]
[1743592294585,0.00060001,84946.0,84945.0,0.10941279]
[1743592295874,0.04320001,84946.0,84945.0,0.10941279]
[1743592296777,0.00060001,84946.0,84945.0,0.10941279]
[1743592297173,0.00076,84946.0,84945.0,0.10941279]
[1743592300075,0.0008,84946.0,84945.0,0.10941279]
[1743592303385,0.14823026,84950.0,84945.0,0.10941279]
[1743592303587,0.14883027,84950.0,84946.0,0.01554641]
[1743592303788,0.14883027,84950.0,84947.0,0.03095279]
[1743592303988,0.14883027,84950.0,84948.0,0.01554641]
[1743592304191,0.14883027,84950.0,84949.0,0.01561]
[1743592304384,0.14883027,84950.0,84949.0,0.11727638]
[1743592305686,0.2774512,84950.0,84949.0,0.03177638]
[1743592305985,0.2774512,84950.0,84940.0,8e-05]
[1743592305986,0.2774512,84950.0,84935.0,0.28221031]
[1743592306291,0.3608,84940.0,84939.0,0.21204828]
[1743592306486,0.36164,84940.0,84939.0,0.21204828]
[1743592306686,0.48811372,84940.0,84939.0,0.21204828]
[1743592310187,0.48811372,84940.0,84939.0,0.00084]
[1743592310494,0.48811372,84940.0,84936.0,8e-05]
[1743592310687,0.0839,84939.0,84936.0,8e-05]
[1743592310887,0.08454,84939.0,84936.0,8e-05]
[1743592311087,0.12562922,84938.0,84936.0,8e-05]
[1743592311288,0.12622923,84938.0,84936.0,8e-05]
[1743592311493,0.1217,84937.0,84936.0,8e-05]
[1743592311692,0.12238,84937.0,84936.0,8e-05]
[1743592311992,0.25395795,84937.0,84936.0,8e-05]
[1743592314995,0.39491125,84937.0,84934.0,0.00064745]
[1743592315496,0.3608,84935.0,84907.0,0.35246135]
[1743592315693,0.3608,84935.0,84918.0,0.21243932]
[1743592315694,0.3608,84924.0,84918.0,0.21243932]
[1743592316000,0.123,84923.0,84918.0,0.21243932]
[1743592316288,0.25759617,84923.0,84920.0,8e-05]
[1743592316500,0.25759617,84923.0,84920.0,0.00084]
[1743592318584,0.1409533,84921.0,84920.0,0.00084]
[1743592318789,0.14155331,84921.0,84918.0,0.00047104]
[1743592318989,0.0815,84920.0,84918.0,0.00047104]
[1743592319190,0.08210001,84920.0,84918.0,0.00047104]
[1743592319392,0.13367061,84919.0,84918.0,0.00047104]
[1743592319591,0.13427062,84919.0,84918.0,0.00047104]
[1743592319795,0.21577062,84919.0,84918.0,0.00047104]
[1743592327606,0.57657062,84919.0,84918.0,0.00047104]
[1743592330212,0.57657062,84919.0,84914.0,8e-05]
[1743592330409,0.57657062,84919.0,84913.0,0.0001766]
[1743592334818,0.1409533,84916.0,84913.0,0.0001766]
[1743592335002,0.0829,84915.0,84913.0,0.0001766]
[1743592335205,0.20781314,84915.0,84913.0,0.0001766]
[1743592335417,0.0408,84914.0,84913.0,0.0001766]
[1743592335719,0.04144,84914.0,84913.0,0.0001766]
[1743592335912,0.20777058,84914.0,84913.0,0.0001766]
[1743592336111,0.16707058,84914.0,84913.0,0.0001766]
[1743592346117,0.52787058,84914.0,84913.0,0.0001766]
[1743592346321,0.16707058,84914.0,84913.0,0.0001766]
[1743592346521,0.52787058,84914.0,84913.0,0.0001766]
[1743592347331,0.16707058,84914.0,84913.0,0.0001766]
[1743592347642,0.52787058,84914.0,84913.0,0.0001766]
[1743592348222,0.16707058,84914.0,84913.0,0.0001766]
[1743592348423,0.52787058,84914.0,84913.0,0.0001766]
[1743592348624,0.76147413,84914.0,84913.0,0.0001766]
[1743592350226,0.40067413,84914.0,84913.0,0.0001766]
[1743592350424,0.76147413,84914.0,84913.0,0.0001766]
[1743592352322,0.40067413,84914.0,84913.0,0.0001766]
[1743592352626,0.76147413,84914.0,84913.0,0.0001766]
[1743592353223,0.40067413,84914.0,84913.0,0.0001766]
[1743592354230,0.36007413,84914.0,84913.0,0.0001766]
[1743592354531,0.18372951,84914.0,84913.0,0.0001766]
[1743592357031,0.12647058,84914.0,84913.0,0.0001766]
[1743592361329,0.36026604,84914.0,84913.0,0.0001766]
[1743592363935,0.39866604,84914.0,84913.0,0.0001766]
[1743592365728,0.16487058,84914.0,84913.0,0.0001766]
[1743592366229,0.20507058,84914.0,84913.0,0.0001766]
[1743592370741,0.56587058,84914.0,84913.0,0.0001766]
[1743592371426,0.20507058,84914.0,84913.0,0.0001766]
[1743592371724,0.56587058,84914.0,84913.0,0.0001766]
[1743592373537,0.20507058,84914.0,84913.0,0.0001766]
[1743592373740,0.56587058,84914.0,84913.0,0.0001766]
[1743592374131,0.62313279,84914.0,84913.0,0.0001766]
[1743592374931,0.26233279,84914.0,84913.0,0.0001766]
[1743592375140,0.62313279,84914.0,84911.0,8e-05]
[1743592375840,0.26233279,84914.0,84911.0,8e-05]
[1743592376040,0.3608,84912.0,84911.0,8e-05]
[1743592376243,0.36148,84912.0,84911.0,8e-05]
[1743592376437,0.1255115,84912.0,84911.0,8e-05]
[1743592376644,0.4863115,84912.0,84911.0,8e-05]
[1743592379535,0.54357371,84912.0,84911.0,8e-05]
[1743592383943,0.54357371,84912.0,84903.0,0.0001766]
[1743592383944,0.62447371,84912.0,84903.0,0.0001766]
[1743592384246,0.62447371,84912.0,84909.0,8e-05]
[1743592385160,0.58317371,84912.0,84909.0,8e-05]
[1743592385449,0.54357371,84912.0,84909.0,8e-05]
[1743592385648,0.18277371,84912.0,84909.0,8e-05]
[1743592386052,0.18277371,84912.0,84909.0,0.00084]
[1743592387448,0.05726221,84911.0,84909.0,0.00084]
[1743592387649,0.05802221,84911.0,84909.0,0.00084]
[1743592387849,0.1321155,84910.0,84909.0,0.00084]
[1743592388050,0.1328755,84910.0,84909.0,0.00084]
[1743592390445,0.1728755,84910.0,84909.0,0.00084]
[1743592390752,0.5336755,84910.0,84909.0,0.00084]
[1743592390954,0.5715755,84910.0,84905.0,0.0378]
[1743592391141,0.5715755,84910.0,84908.0,8e-05]
[1743592391547,0.5715755,84910.0,84903.0,0.0001766]
[1743592391750,0.5715755,84910.0,84907.0,8e-05]
[1743592392047,0.5715755,84910.0,84903.0,0.0001766]
[1743592392349,0.2107755,84910.0,84906.0,8e-05]
[1743592394149,0.3608,84907.0,84906.0,8e-05]
[1743592394346,0.36144,84907.0,84906.0,8e-05]
[1743592394545,0.49438536,84907.0,84906.0,8e-05]
[1743592394946,0.57288536,84907.0,84906.0,8e-05]
[1743592398156,0.63015079,84907.0,84906.0,8e-05]
[1743592402158,0.63015079,84907.0,84901.0,8e-05]
[1743592402364,0.3608,84903.0,84901.0,8e-05]
[1743592402552,0.081,84902.0,84892.0,0.0761]
[1743592402750,0.3608,84893.0,84892.0,0.0761]
[1743592403053,0.36156,84893.0,84892.0,0.07686]
[1743592403256,0.48964677,84893.0,84892.0,0.07686]
[1743592403558,0.48964677,84893.0,84892.0,0.0761]
[1743592403759,0.48964677,84893.0,84892.0,0.08869011]
[1743592403951,0.48964677,84893.0,84892.0,0.08953011]
[1743592407156,0.48964677,84893.0,84892.0,0.08869011]
[1743592409756,0.12884677,84893.0,84892.0,0.08869011]
[1743592427778,0.12884677,84893.0,84892.0,0.08953011]
[1743592430772,0.12884677,84893.0,84892.0,0.08869011]
[1743592438983,0.17014677,84893.0,84892.0,0.08869011]
[1743592439783,0.17014677,84893.0,84892.0,0.05089011]
[1743592440480,0.17014677,84893.0,84892.0,0.08889011]
[1743592440679,0.17014677,84893.0,84892.0,0.05089011]
[1743592443082,0.17014677,84893.0,84892.0,0.09149011]
[1743592447787,0.22741788,84893.0,84892.0,0.09149011]
[1743592450689,0.18611788,84893.0,84892.0,0.09149011]
[1743592451993,0.05803111,84893.0,84892.0,0.45229011]
[1743592452197,0.05803111,84893.0,84892.0,0.45305011]
[1743592455402,0.00076,84893.0,84892.0,0.45305011]
[1743592455604,0.00084,84893.0,84892.0,0.45305011]
[1743592455804,0.04044,84893.0,84892.0,0.45305011]
[1743592456698,0.04044,84893.0,84892.0,0.09225011]
[1743592456901,0.04044,84893.0,84892.0,0.45305011]
[1743592458797,0.14129589,84894.0,84892.0,0.45305011]
[1743592459102,0.0375,84899.0,84892.0,0.45305011]
[1743592459403,0.03854001,84899.0,84892.0,0.45305011]
[1743592460101,0.03854001,84899.0,84892.0,0.46305011]
[1743592463703,0.03854001,84899.0,84892.0,0.10225011]
[1743592464004,0.0782,84898.0,84892.0,0.10225011]
[1743592464198,0.0782,84898.0,84892.0,0.09225011]
[1743592464390,0.0391,84897.0,84892.0,0.09225011]
[1743592465207,0.078,84897.0,84892.0,0.09225011]
[1743592466094,0.07904001,84897.0,84892.0,0.09225011]
[1743592467303,0.07904001,84897.0,84892.0,0.05165011]
[1743592467896,0.07904001,84897.0,84892.0,0.09149011]
[1743592468796,0.00104001,84897.0,84892.0,0.12253011]
[1743592468998,0.00104001,84897.0,84896.0,0.3608]
[1743592469207,0.00104001,84897.0,84896.0,0.37184]
[1743592470804,0.00104001,84897.0,84896.0,0.01104]
[1743592474304,0.0402,84900.0,84896.0,0.01104]
[1743592474502,0.04132001,84900.0,84896.0,0.01104]
[1743592474801,0.04132001,84900.0,84897.0,0.0807]
[1743592475000,0.04132001,84900.0,84897.0,0.09174]
[1743592475810,0.04132001,84900.0,84897.0,0.1691]
[1743592483417,0.07902001,84900.0,84897.0,0.1691]
[1743592483609,0.07902001,84900.0,84897.0,0.09174]
[1743592483809,0.07902001,84900.0,84898.0,0.07732]
[1743592484119,0.07902001,84900.0,84898.0,0.07836]
[1743592484412,0.07902001,84900.0,84899.0,0.078]
[1743592484619,0.07902001,84900.0,84899.0,0.07904]
[1743592484817,0.07902001,84900.0,84899.0,0.11664]
[1743592489419,0.07902001,84900.0,84899.0,0.00104]
[1743592489621,0.11972001,84900.0,84898.0,0.07732]
[1743592489821,0.11972001,84900.0,84898.0,0.07836]
[1743592495312,0.07902001,84900.0,84898.0,0.07836]
[1743592495519,0.04132001,84900.0,84899.0,0.0801]
[1743592495821,0.04132001,84900.0,84899.0,0.08118]
[1743592497722,0.08012001,84900.0,84899.0,0.08118]
[1743592500619,0.08012001,84900.0,84899.0,0.04088]
[1743592502531,0.08012001,84900.0,84899.0,0.07768]
[1743592503537,0.04132001,84900.0,84899.0,0.07768]
[1743592503833,0.17679646,84901.0,84899.0,0.44848]
[1743592504037,0.21178074,84906.0,84899.0,0.44848]
[1743592504238,0.21368314,84905.0,84899.0,0.44848]
[1743592504432,0.17668314,84905.0,84899.0,0.44848]
[1743592505233,0.14486584,84905.0,84899.0,0.45848]
[1743592505425,0.0001766,84910.0,84900.0,0.04405939]
[1743592505638,0.0001766,84910.0,84906.0,0.3608]
[1743592505838,0.0001766,84910.0,84907.0,0.1207]
[1743592506033,0.0001766,84910.0,84907.0,0.1307]
[1743592506837,0.0001766,84910.0,84908.0,0.07732]
[1743592507231,0.0001766,84910.0,84909.0,0.0788]
[1743592510347,0.0757766,84910.0,84909.0,0.0788]
[1743592511541,0.0757766,84910.0,84909.0,0.08056]
[1743592512942,0.0389766,84910.0,84909.0,0.08056]
[1743592513345,0.3608,84936.0,84909.0,0.08056]
[1743592513551,0.0395,84917.0,84915.0,0.10492411]
[1743592513753,0.0395,84917.0,84916.0,0.1164]
[1743592513941,0.0395,84917.0,84916.0,0.11816]
[1743592516841,0.0001766,84925.0,84916.0,0.39816]
[1743592517048,0.0001766,84925.0,84922.0,0.3608]
[1743592517249,0.0001766,84925.0,84923.0,0.15478]
[1743592517446,0.0001766,84925.0,84923.0,0.16654]
[1743592517842,0.0396,84934.0,84923.0,0.16654]
[1743592518758,8e-05,84937.0,84923.0,0.16654]
[1743592519049,0.0001766,84933.0,84927.0,0.10492411]
[1743592519253,0.0001766,84933.0,84928.0,0.1146]
[1743592519457,0.0001766,84933.0,84929.0,0.3608]
[1743592519647,0.0001766,84933.0,84929.0,0.37256]
[1743592519952,0.0001766,84933.0,84930.0,0.0765]
[1743592520156,8e-05,84938.0,84930.0,0.35826]
[1743592520345,8e-05,84938.0,84936.0,0.3608]
[1743592520658,0.21178074,84940.0,84937.0,0.15378]
[1743592520953,0.21178074,84940.0,84937.0,0.17438967]
[1743592522355,8e-05,84941.0,84937.0,0.17438967]
[1743592522543,8e-05,84941.0,84937.0,0.18641163]
[1743592522752,8e-05,84941.0,84937.0,0.10913163]
[1743592523055,8e-05,84941.0,84938.0,0.07728]
[1743592523253,8e-05,84941.0,84938.0,0.07908]
[1743592523455,0.07488,84941.0,84939.0,0.0779]
[1743592523749,0.07488,84941.0,84939.0,0.07966]
[1743592523951,0.07488,84941.0,84940.0,0.0397]
[1743592524155,0.07488,84941.0,84940.0,0.04146]
[1743592524357,0.07488,84941.0,84940.0,0.11896]
[1743592527657,0.03828,84941.0,84940.0,0.11896]
[1743592527851,0.0001764,84947.0,84940.0,0.11896]
[1743592528247,0.0001764,84947.0,84940.0,0.13896]
[1743592531859,0.0001764,84947.0,84941.0,0.07724]
[1743592532057,0.0001764,84947.0,84941.0,0.079]
[1743592532256,0.0001764,84947.0,84942.0,0.0382]
[1743592532458,0.0001764,84947.0,84942.0,0.04]
[1743592532758,0.0001764,84947.0,84943.0,0.0375]
[1743592532947,0.0001764,84947.0,84943.0,0.03926]
[1743592533345,0.0001764,84947.0,84944.0,0.0382]
[1743592533559,0.0001764,84947.0,84944.0,0.03996]
[1743592533859,8e-05,84955.0,84945.0,0.0375]
[1743592534057,0.0004,84959.0,84952.0,0.3608]
[1743592534256,0.0004,84959.0,84953.0,0.18674]
[1743592534454,8e-05,84958.0,84953.0,0.1885]
[1743592534656,0.0004,84959.0,84953.0,0.1885]
[1743592536857,0.0008,84959.0,84953.0,0.1885]
[1743592541357,0.0004,84959.0,84953.0,0.1885]
[1743592541953,0.0008,84959.0,84953.0,0.1885]
[1743592543859,0.0008,84959.0,84953.0,0.1985]
[1743592546351,0.0004,84959.0,84953.0,0.1985]
[1743592546752,0.0008,84959.0,84953.0,0.1985]
[1743592548565,0.0008,84959.0,84953.0,0.2085]
[1743592548760,0.24449031,85001.0,84953.0,0.2085]
[1743592548964,8e-05,84968.0,84967.0,0.3608]
[1743592549161,8e-05,84968.0,84967.0,0.43976]
[1743592551357,8e-05,84968.0,84967.0,0.07896]
[1743592551557,0.0763,84973.0,84967.0,0.43976]
[1743592552765,0.0763,84973.0,84967.0,0.07896]
[1743592553155,0.0763,84973.0,84967.0,0.43976]
[1743592556158,0.0763,84973.0,84967.0,0.36256]
[1743592556365,0.0763,84973.0,84968.0,0.0772]
[1743592556563,0.0763,84973.0,84968.0,0.07896]
[1743592559874,0.0763,84973.0,84969.0,0.0369]
[1743592560073,0.0763,84973.0,84969.0,0.03866]
[1743592560373,0.3608,84970.0,84969.0,0.00176]
[1743592560576,0.3608,84970.0,84950.0,0.0369]
[1743592560870,0.3608,84961.0,84959.0,0.21296828]
[1743592561171,0.1125,84960.0,84959.0,0.21296828]
[1743592561375,0.23656045,84960.0,84959.0,0.21296828]
[1743592562567,0.23656045,84960.0,84959.0,0.00176]
[1743592562767,0.23656045,84960.0,84952.0,0.21120828]
[1743592562971,0.23656045,84960.0,84952.0,0.21304828]
[1743592564978,0.3608,84958.0,84952.0,0.21304828]
[1743592565276,0.076,84957.0,84952.0,0.21304828]
[1743592565477,0.20281067,84957.0,84952.0,0.21304828]
[1743592565882,0.20281067,84957.0,84952.0,0.00184]
[1743592566074,0.20281067,84957.0,84948.0,0.0383766]
[1743592566274,0.20281067,84957.0,84948.0,0.0402166]
[1743592568381,0.20281067,84957.0,84948.0,0.0801166]
[1743592572974,0.076,84957.0,84948.0,0.0801166]
[1743592577878,0.3608,84958.0,84948.0,0.0801166]
[1743592579682,8e-05,84960.0,84952.0,0.3608]
[1743592579882,0.3608,84967.0,84953.0,0.1127]
[1743592580074,0.17992778,84965.0,84953.0,0.11446]
[1743592580278,0.12843265,84962.0,84953.0,0.11446]
[1743592580475,0.12843265,84962.0,84954.0,0.07716]
[1743592580684,0.0392,84961.0,84954.0,0.07896]
[1743592584183,0.0392,84961.0,84955.0,0.0361]
[1743592584379,0.0367,84962.0,84955.0,0.03786]
[1743592584587,0.0365,84963.0,84956.0,0.0376]
[1743592584781,0.0365,84963.0,84957.0,0.0361]
[1743592585085,0.20021635,84963.0,84957.0,0.03786]
[1743592585984,0.3608,84958.0,84957.0,0.00176]
[1743592586188,0.3608,84958.0,84947.0,0.24810828]
[1743592586392,0.1152,84957.0,84948.0,0.0020166]
[1743592586889,0.12949171,84956.0,84948.0,0.0020166]
[1743592587286,0.0763,84955.0,84949.0,0.0751]
[1743592587494,0.0763,84955.0,84950.0,0.0365]
[1743592587690,0.12280091,84954.0,84950.0,0.03826]
[1743592587896,0.12280091,84954.0,84951.0,0.0376]
[1743592588090,0.12280091,84954.0,84951.0,0.0394]
[1743592588091,0.16090091,84954.0,84951.0,0.0394]
[1743592588399,0.0382,84956.0,84952.0,0.0365]
[1743592588581,0.0382,84956.0,84952.0,0.0383]
[1743592588786,0.1734443,84956.0,84953.0,0.0383]
[1743592589087,0.1734443,84956.0,84953.0,0.0401]
[1743592589289,0.1734443,84956.0,84954.0,0.0371]
[1743592589489,0.1734443,84956.0,84954.0,0.03886]
[1743592589690,0.1734443,84956.0,84955.0,0.0383]
[1743592589884,0.1734443,84956.0,84955.0,0.04014]
[1743592590088,0.1734443,84956.0,84955.0,0.0383]
[1743592590287,0.2125443,84956.0,84955.0,0.0383]
[1743592594097,0.2125443,84956.0,84954.0,0.0371]
[1743592596499,0.3608,84978.0,84955.0,0.43796]
[1743592596689,0.3608,84971.0,84955.0,0.69902]
[1743592596996,0.3608,84971.0,84955.0,0.47902]
[1743592597190,8e-05,84969.0,84955.0,0.48902]
[1743592597787,8e-05,84969.0,84956.0,0.04477197]
[1743592597997,0.039,84976.0,84956.0,0.30653197]
[1743592598185,8e-05,84971.0,84962.0,0.3608]
[1743592598384,8e-05,84971.0,84963.0,0.113]
[1743592598589,8e-05,84971.0,84963.0,0.1148]
[1743592603098,8e-05,84971.0,84966.0,0.21120828]
[1743592603290,0.03868,84977.0,84969.0,0.3608]
[1743592603291,8e-05,84977.0,84969.0,0.3608]
[1743592603490,0.14089814,84983.0,84969.0,0.3608]
[1743592603491,0.14089814,84983.0,84976.0,0.3608]
[1743592603798,0.14089814,84983.0,84977.0,0.11]
[1743592604003,0.14089814,84983.0,84977.0,0.1118]
[1743592605102,0.14089814,84983.0,84978.0,0.07712]
[1743592605305,0.14089814,84983.0,84978.0,0.07888]
[1743592605508,0.14089814,84983.0,84979.0,0.0729]
[1743592605704,0.14089814,84983.0,84979.0,0.07474]
[1743592606007,0.0387,84989.0,84979.0,0.07474]
[1743592606196,0.0363,84988.0,84979.0,0.23431919]
[1743592606600,0.036,84987.0,84979.0,0.23431919]
[1743592607091,0.0363,84986.0,84979.0,0.23431919]
[1743592607599,0.036,84985.0,84979.0,0.23431919]
[1743592607991,0.0379,84984.0,84979.0,0.23431919]
[1743592608391,0.036,84983.0,84979.0,0.23431919]
[1743592608796,0.0362,84989.0,84979.0,0.23431919]
[1743592608999,8e-05,84986.0,84979.0,0.23431919]
[1743592609999,0.0739,84988.0,84979.0,0.23431919]
[1743592617803,0.0739,84988.0,84979.0,0.07474]
[1743592620798,0.13149898,84987.0,84979.0,0.07474]
[1743592621305,0.072,84986.0,84979.0,0.07474]
[1743592621525,0.4328,84986.0,84979.0,0.00184]
[1743592621710,0.13413816,84985.0,84967.0,0.0388]
[1743592622015,0.3608,84979.0,84971.0,0.0019366]
[1743592622311,0.0754,84978.0,84972.0,0.0373]
[1743592622507,0.23575532,84978.0,84972.0,0.03906]
[1743592622705,0.59655532,84978.0,84972.0,0.00176]
[1743592623012,0.59655532,84978.0,84971.0,0.0001766]
[1743592624607,0.07708,84977.0,84971.0,0.0001766]
[1743592625117,0.20892571,84976.0,84971.0,0.0001766]
[1743592625910,0.20892571,84976.0,84961.0,8e-05]
[1743592626114,0.3608,84965.0,84961.0,8e-05]
[1743592626307,0.1114,84964.0,84961.0,0.00188]
[1743592626513,0.24418323,84964.0,84961.0,0.00188]
[1743592627713,0.24418323,84964.0,84962.0,0.0374]
[1743592627920,0.24418323,84964.0,84962.0,0.03916]
[1743592628314,0.24418323,84964.0,84962.0,0.00176]
[1743592628510,0.24418323,84964.0,84961.0,8e-05]
[1743592629219,0.24418323,84964.0,84961.0,0.03478]
[1743592631919,0.24418323,84964.0,84961.0,8e-05]
[1743592632221,0.3608,84962.0,84961.0,8e-05]
[1743592632518,0.3608,84962.0,84960.0,0.00104]
[1743592632725,0.073,84961.0,84960.0,0.00104]
[1743592633115,0.20611427,84961.0,84960.0,0.00104]
[1743592633814,0.92771427,84961.0,84960.0,0.00104]
[1743592634013,0.92771427,84961.0,84954.0,0.0001766]
[1743592634218,0.93650459,84961.0,84954.0,0.0001766]
[1743592636225,0.07712,84960.0,84954.0,0.0001766]
[1743592636619,0.2049872,84959.0,84954.0,0.0001766]
[1743592637125,0.18255126,84958.0,84954.0,0.0001766]
[1743592637629,0.20131813,84957.0,84954.0,0.0001766]
[1743592637923,0.3608,84955.0,84954.0,0.0001766]
[1743592638427,0.55644828,84955.0,84954.0,0.0001766]
[1743592638831,0.19564828,84955.0,84954.0,0.0001766]
[1743592639023,0.55644828,84955.0,84954.0,0.0001766]
[1743592642024,0.63356828,84955.0,84954.0,0.0001766]
[1743592644625,0.55644828,84955.0,84954.0,0.0001766]
[1743592645827,0.48504828,84955.0,84954.0,0.0001766]
[1743592646527,0.51944828,84955.0,84954.0,0.0001766]
[1743592646728,0.15864828,84955.0,84954.0,0.0001766]
[1743592646925,0.51944828,84955.0,84954.0,0.0001766]
[1743592647817,0.55644828,84955.0,84954.0,0.0001766]
[1743592648525,0.19564828,84955.0,84954.0,0.0001766]
[1743592648715,0.55644828,84955.0,84954.0,0.0001766]
[1743592649726,0.59284828,84955.0,84954.0,0.0001766]
[1743592653027,0.73374642,84955.0,84954.0,0.0001766]
[1743592654030,1.07914642,84955.0,84910.0,0.10480984]
[1743592654229,0.3608,84944.0,84906.0,0.3608]
[1743592654421,0.3608,84944.0,84931.0,0.21296828]
[1743592654422,0.3608,84932.0,84931.0,0.21296828]
[1743592654812,0.48372417,84932.0,84931.0,0.21296828]
[1743592655016,0.48372417,84932.0,84925.0,0.28221031]
[1743592655221,0.3608,84926.0,84925.0,0.28345031]
[1743592655619,0.49157043,84926.0,84925.0,0.28345031]
[1743592657917,0.49157043,84926.0,84925.0,0.00124]
[1743592658115,0.49157043,84926.0,84923.0,0.0001766]
[1743592658320,0.0714,84925.0,84923.0,0.0001766]
[1743592658816,0.13076454,84924.0,84923.0,0.0001766]
[1743592659226,0.16806454,84924.0,84923.0,0.0001766]
[1743592659427,0.20226454,84924.0,84923.0,0.0001766]
[1743592659729,0.92386454,84924.0,84923.0,0.0001766]
[1743592660226,0.92446455,84924.0,84918.0,0.07537104]
[1743592661426,0.92446455,84924.0,84913.0,0.0001766]
[1743592661628,0.3608,84914.0,84913.0,0.0002566]
[1743592661829,0.36140001,84914.0,84913.0,0.0002566]
[1743592662021,0.4918872,84914.0,84913.0,0.0002566]
[1743592664727,0.4918872,84914.0,84913.0,0.0725566]
[1743592666922,0.4918872,84914.0,84913.0,0.0724766]
[1743592667722,0.4918872,84914.0,84906.0,0.00868638]
[1743592667723,0.4918872,84914.0,84902.0,0.00047113]
[1743592667918,0.3608,84903.0,84902.0,0.00016]
[1743592668132,0.36140001,84903.0,84902.0,0.01204394]
[1743592668317,0.49328966,84903.0,84902.0,0.00016]
[1743592668522,0.49328966,84903.0,84884.0,0.07712]
[1743592668718,0.0723,84902.0,84899.0,8e-05]
[1743592669032,0.07294,84902.0,84899.0,8e-05]
[1743592669326,0.12621391,84901.0,84899.0,8e-05]
[1743592669535,0.12681392,84901.0,84899.0,8e-05]
[1743592669729,0.0723,84900.0,84899.0,8e-05]
[1743592669926,0.07290001,84900.0,84899.0,8e-05]
[1743592670126,0.19749119,84900.0,84899.0,8e-05]
[1743592671732,0.19749119,84900.0,84899.0,0.01242236]
[1743592673424,0.19749119,84900.0,84899.0,0.05022236]
[1743592675136,0.16289119,84900.0,84899.0,0.05022236]
[1743592675536,0.12519119,84900.0,84899.0,0.05022236]
[1743592677233,0.12519119,84900.0,84899.0,0.05146236]
[1743592677538,0.12519119,84900.0,84899.0,0.05022236]
[1743592682446,0.12519119,84900.0,84899.0,0.05142236]
[1743592685044,0.12519119,84900.0,84899.0,0.05014236]
[1743592689247,0.12519119,84900.0,84899.0,0.01234236]
[1743592689448,0.12519119,84900.0,84895.0,0.0364]
[1743592689650,0.072,84899.0,84895.0,0.0364]
[1743592689839,0.07260001,84899.0,84895.0,0.0364]
[1743592690041,0.13283717,84898.0,84895.0,0.0364]
[1743592690342,0.13343718,84898.0,84895.0,0.0364]
[1743592690542,0.072,84897.0,84895.0,0.04817536]
[1743592690845,0.07264,84897.0,84895.0,0.04817536]
[1743592691848,0.07264,84897.0,84895.0,0.04941536]
[1743592693041,0.21386917,84897.0,84895.0,0.04941536]
[1743592693752,0.21386917,84897.0,84895.0,0.01301536]
[1743592694447,0.21386917,84897.0,84896.0,0.0376]
[1743592694846,0.21386917,84897.0,84896.0,0.0719]
[1743592696146,0.17766917,84897.0,84896.0,0.0719]
[1743592696354,0.14186917,84897.0,84896.0,0.0819]
[1743592696647,0.11919613,84905.0,84896.0,0.32026]
[1743592696846,0.12067613,84905.0,84899.0,0.3608]
[1743592697151,0.11919613,84905.0,84900.0,0.1073]
[1743592697449,0.11919613,84905.0,84900.0,0.13874]
[1743592700747,0.11919613,84905.0,84902.0,0.3608]
[1743592700949,0.12071613,84905.0,84903.0,0.0713]
[1743592701145,0.10741573,84905.0,84903.0,0.09274]
[1743592701347,0.1411943,84910.0,84904.0,0.07712]
[1743592701542,0.18791847,84922.0,84912.0,0.1598199]
[1743592701852,0.18791847,84922.0,84921.0,0.3608]
[1743592702053,0.18791847,84922.0,84921.0,0.4398]
[1743592702348,0.18791847,84922.0,84921.0,0.4698]
[1743592702550,0.18791847,84922.0,84921.0,0.4498]
[1743592704849,0.0355,84929.0,84921.0,0.4498]
[1743592705155,0.0355,84929.0,84922.0,0.074]
[1743592705356,0.0355,84929.0,84922.0,0.08588]
[1743592705555,0.0355,84929.0,84923.0,0.0343]
[1743592705758,0.0355,84929.0,84923.0,0.03626]
[1743592705947,0.0355,84929.0,84924.0,0.074]
[1743592706146,0.0355,84929.0,84924.0,0.07588]
[1743592706352,0.0001766,84930.0,84924.0,0.07588]
[1743592706548,0.0001766,84930.0,84924.0,0.08588]
[1743592707150,0.0001766,84930.0,84924.0,0.09588]
[1743592710954,0.0001766,84930.0,84928.0,0.3608]
[1743592711157,0.0001766,84930.0,84929.0,0.0717]
[1743592711345,8e-05,84941.0,84929.0,0.36358]
[1743592711547,0.0347,84942.0,84939.0,0.3608]
[1743592711753,0.02631715,84958.0,84940.0,0.18568]
[1743592711962,0.02631715,84958.0,84948.0,0.1598199]
[1743592712149,0.3608,84955.0,84949.0,0.0717]
[1743592712352,0.24449031,84965.0,84950.0,0.0369]
[1743592712555,0.0001766,84960.0,84950.0,0.03882]
[1743592714060,0.0001766,84960.0,84950.0,0.05071664]
[1743592716360,0.0001766,84960.0,84953.0,0.3608]
[1743592716552,0.0001766,84960.0,84954.0,0.14858]
[1743592716755,0.0001766,84960.0,84954.0,0.15046]
[1743592719857,0.0001766,84960.0,84955.0,0.07708]
[1743592720059,0.0001766,84960.0,84955.0,0.08896]
[1743592720370,0.1082,84966.0,84956.0,0.0724]
[1743592720559,0.1082,84966.0,84956.0,0.2441399]
[1743592722463,0.0176,84974.0,84960.0,0.3608]
[1743592722665,8e-05,84976.0,84969.0,0.3608]
[1743592722865,0.3608,84999.0,84970.0,0.11218]
[1743592723062,0.3608,84999.0,84981.0,0.1598199]
[1743592723268,8e-05,84989.0,84982.0,0.18408]
[1743592723455,0.00016,84997.0,84982.0,0.18408]
[1743592723456,0.07708,85014.0,84982.0,0.186]
[1743592723656,8e-05,84994.0,84982.0,0.186]
[1743592725956,0.0689,84998.0,84982.0,0.186]
[1743592726159,0.0689,84998.0,84983.0,0.3608]
[1743592726363,8e-05,84997.0,84983.0,0.36276]
[1743592726574,0.0689,84998.0,84983.0,0.36276]
[1743592726867,8e-05,84997.0,84983.0,0.36276]
[1743592727254,8e-05,84997.0,84984.0,0.0588334]
[1743592727459,0.03728,84997.0,84990.0,0.1176585]
[1743592727658,0.03728,84997.0,84990.0,0.1196185]
[1743592728059,0.03728,84997.0,84990.0,0.1966585]
[1743592728958,0.1176533,84994.0,84990.0,0.1196185]
[1743592729154,0.0734,84993.0,84990.0,0.1966585]
[1743592729766,0.191055,84993.0,84990.0,0.1966585]
[1743592730172,0.117656,84992.0,84990.0,0.1966585]
[1743592730372,0.1180571,84991.0,84990.0,0.2340585]